[Event "Titled Tuesday Blitz August 22 Late 2023"]
[White "OPQRC"]
[Black "Martinez, Shawn"]
[BlackFideId "2039770"]
[WhiteElo "2629"]
[BlackElo "2337"]
[Result "1-0"]
[Round "1"]
[TimeControl "180+1"]
[Date "2023.08.22"]
[WhiteClock "0:00:08"]
[BlackClock "0:00:03"]
[Board "140"]

1. e4 {[%clk 0:02:20]}  c5 {[%clk 0:02:57]} 2. Nf3 {[%clk 0:02:20]}  e6 {[%clk 0:02:58]} 3. d4 {[%clk 0:02:20]}  cxd4 {[%clk 0:02:59]} 4. Nxd4 {[%clk 0:02:20]}  a6 {[%clk 0:03:00]} 5. c4 {[%clk 0:02:20]}  Qc7 {[%clk 0:02:59]} 6. Nc3 {[%clk 0:02:15]}  Nf6 {[%clk 0:02:59]} 7. Be2 {[%clk 0:02:15]}  b6 {[%clk 0:02:59]} 8. O-O {[%clk 0:02:14]}  Bb7 {[%clk 0:03:00]} 9. f3 {[%clk 0:02:14]}  d6 {[%clk 0:03:00]} 10. Be3 {[%clk 0:02:12]}  Be7 {[%clk 0:03:01]} 11. Rc1 {[%clk 0:02:11]}  O-O {[%clk 0:03:00]} 12. Qe1 {[%clk 0:02:08]}  Nc6 {[%clk 0:02:54]} 13. Nd5 {[%clk 0:02:05]}  exd5 {[%clk 0:02:36]} 14. cxd5 {[%clk 0:02:04]}  Rad8 {[%clk 0:02:28]} 15. Nxc6 {[%clk 0:02:02]}  Rde8 {[%clk 0:02:08]} 16. Qf2 {[%clk 0:01:37]}  b5 {[%clk 0:02:04]} 17. Bb6 {[%clk 0:01:33]}  Qd7 {[%clk 0:02:04]} 18. Rc2 {[%clk 0:01:26]}  Nh5 {[%clk 0:01:42]} 19. Rfc1 {[%clk 0:01:23]}  Nf4 {[%clk 0:01:41]} 20. Bf1 {[%clk 0:01:21]}  Bg5 {[%clk 0:01:40]} 21. Na5 {[%clk 0:01:07]}  Nxd5 {[%clk 0:00:49]} 22. exd5 {[%clk 0:01:04]}  Bxc1 {[%clk 0:00:48]} 23. Rxc1 {[%clk 0:01:03]}  Bxd5 {[%clk 0:00:48]} 24. Nb3 {[%clk 0:00:57]}  Bxb3 {[%clk 0:00:44]} 25. axb3 {[%clk 0:00:58]}  Qe6 {[%clk 0:00:43]} 26. b4 {[%clk 0:00:52]}  Qb3 {[%clk 0:00:41]} 27. Qd4 {[%clk 0:00:43]}  Re6 {[%clk 0:00:33]} 28. Qc3 {[%clk 0:00:39]}  Qd5 {[%clk 0:00:30]} 29. Bf2 {[%clk 0:00:37]}  Rg6 {[%clk 0:00:30]} 30. Bd3 {[%clk 0:00:32]}  Rg5 {[%clk 0:00:23]} 31. Be4 {[%clk 0:00:32]}  Qe6 {[%clk 0:00:20]} 32. Qc6 {[%clk 0:00:29]}  h5 {[%clk 0:00:18]} 33. Qxa6 {[%clk 0:00:27]}  Qh3 {[%clk 0:00:17]} 34. f4 {[%clk 0:00:21]}  Rg4 {[%clk 0:00:17]} 35. Qxb5 {[%clk 0:00:19]}  Qb3 {[%clk 0:00:14]} 36. Qc4 {[%clk 0:00:14]}  Qxb2 {[%clk 0:00:14]} 37. Qc3 {[%clk 0:00:14]}  Qa2 {[%clk 0:00:12]} 38. g3 {[%clk 0:00:08]}  h4 {[%clk 0:00:12]} 39. Bf5 {[%clk 0:00:07]}  hxg3 {[%clk 0:00:09]} 40. hxg3 {[%clk 0:00:08]}  Rg6 {[%clk 0:00:05]} 41. Bxg6 {[%clk 0:00:08]}  fxg6 {[%clk 0:00:06]} 42. Qc4+ {[%clk 0:00:08]}  Qxc4 {[%clk 0:00:05]} 43. Rxc4 {[%clk 0:00:09]}  Rf5 {[%clk 0:00:05]} 44. Rd4 {[%clk 0:00:08]}  d5 {[%clk 0:00:05]} 45. Kg2 {[%clk 0:00:09]}  g5 {[%clk 0:00:05]} 46. Kf3 {[%clk 0:00:09]}  gxf4 {[%clk 0:00:06]} 47. gxf4 {[%clk 0:00:10]}  g5 {[%clk 0:00:06]} 48. Bg3 {[%clk 0:00:10]}  gxf4 {[%clk 0:00:06]} 49. Bxf4 {[%clk 0:00:11]}  Kf7 {[%clk 0:00:06]} 50. Kg4 {[%clk 0:00:11]}  Rf6 {[%clk 0:00:07]} 51. Rxd5 {[%clk 0:00:11]}  Rb6 {[%clk 0:00:07]} 52. b5 {[%clk 0:00:11]}  Ke6 {[%clk 0:00:08]} 53. Rh5 {[%clk 0:00:12]}  Kd7 {[%clk 0:00:08]} 54. Kf3 {[%clk 0:00:12]}  Re6 {[%clk 0:00:07]} 55. Rd5+ {[%clk 0:00:10]}  Kc8 {[%clk 0:00:07]} 56. Be5 {[%clk 0:00:10]}  Kb7 {[%clk 0:00:07]} 57. Ke4 {[%clk 0:00:10]}  Rh6 {[%clk 0:00:07]} 58. Kd4 {[%clk 0:00:10]}  Rh4+ {[%clk 0:00:07]} 59. Kc5 {[%clk 0:00:10]}  Rh1 {[%clk 0:00:08]} 60. Rd7+ {[%clk 0:00:10]}  Ka8 {[%clk 0:00:07]} 61. Rg7 {[%clk 0:00:09]}  Rh5 {[%clk 0:00:07]} 62. Kb6 {[%clk 0:00:08]}  Rh6+ {[%clk 0:00:06]} 63. Ka5 {[%clk 0:00:08]}  Rh5 {[%clk 0:00:06]} 64. Bd4 {[%clk 0:00:06]}  Rf5 {[%clk 0:00:06]} 65. Ka6 {[%clk 0:00:06]}  Rf8 {[%clk 0:00:04]} 66. Ra7+ {[%clk 0:00:05]}  Kb8 {[%clk 0:00:04]} 67. Be5+ {[%clk 0:00:06]}  Kc8 {[%clk 0:00:04]} 68. Ra8+ {[%clk 0:00:07]}  Kd7 {[%clk 0:00:05]} 69. Rxf8 {[%clk 0:00:08]}  Ke6 {[%clk 0:00:03]} 70. Ra8 {[%clk 0:00:08]} 1-0


[Site "https://www.chess.com"]

[Event "Titled Tuesday Blitz August 22 Late 2023"]
[White "Lacasa Diaz, Jose Antonio"]
[Black "Fiorito, Joaquin"]
[WhiteFideId "2203375"]
[BlackFideId "180173"]
[WhiteElo "2336"]
[BlackElo "2629"]
[Result "1/2-1/2"]
[Round "1"]
[TimeControl "180+1"]
[Date "2023.08.22"]
[WhiteClock "0:00:17"]
[BlackClock "0:00:23"]
[Board "141"]

1. e4 {[%clk 0:03:00]}  c5 {[%clk 0:02:59]} 2. Nf3 {[%clk 0:03:01]}  d6 {[%clk 0:03:00]} 3. d4 {[%clk 0:03:00]}  cxd4 {[%clk 0:03:01]} 4. Nxd4 {[%clk 0:03:00]}  Nf6 {[%clk 0:03:02]} 5. Nc3 {[%clk 0:03:00]}  a6 {[%clk 0:03:02]} 6. Be3 {[%clk 0:03:00]}  e5 {[%clk 0:03:02]} 7. Nb3 {[%clk 0:03:00]}  Be7 {[%clk 0:03:02]} 8. Qd2 {[%clk 0:03:01]}  Be6 {[%clk 0:02:57]} 9. O-O-O {[%clk 0:02:59]}  Ng4 {[%clk 0:02:51]} 10. g3 {[%clk 0:02:57]}  Nxe3 {[%clk 0:02:51]} 11. Qxe3 {[%clk 0:02:56]}  Nd7 {[%clk 0:02:47]} 12. f4 {[%clk 0:02:56]}  Rc8 {[%clk 0:02:43]} 13. Kb1 {[%clk 0:02:52]}  b5 {[%clk 0:02:36]} 14. f5 {[%clk 0:02:44]}  Bxb3 {[%clk 0:02:36]} 15. axb3 {[%clk 0:02:42]}  Qb6 {[%clk 0:02:35]} 16. Qf3 {[%clk 0:02:36]}  Nf6 {[%clk 0:02:32]} 17. g4 {[%clk 0:02:31]}  h6 {[%clk 0:02:32]} 18. h4 {[%clk 0:02:28]}  b4 {[%clk 0:02:27]} 19. Nd5 {[%clk 0:02:27]}  Nxd5 {[%clk 0:02:27]} 20. Rxd5 {[%clk 0:02:28]}  Rc5 {[%clk 0:02:16]} 21. Bc4 {[%clk 0:02:13]}  a5 {[%clk 0:02:01]} 22. g5 {[%clk 0:01:46]}  a4 {[%clk 0:01:23]} 23. g6 {[%clk 0:01:34]}  f6 {[%clk 0:01:14]} 24. Qd3 {[%clk 0:01:25]}  axb3 {[%clk 0:01:10]} 25. cxb3 {[%clk 0:01:19]}  Kd8 {[%clk 0:00:53]} 26. Rxc5 {[%clk 0:01:12]}  Qxc5 {[%clk 0:00:54]} 27. Rc1 {[%clk 0:01:11]}  Qd4 {[%clk 0:00:47]} 28. Qe2 {[%clk 0:00:58]}  Qb6 {[%clk 0:00:29]} 29. Be6 {[%clk 0:00:54]}  Bf8 {[%clk 0:00:25]} 30. Qc4 {[%clk 0:00:48]}  Qb7 {[%clk 0:00:21]} 31. Qc8+ {[%clk 0:00:40]}  Qxc8 {[%clk 0:00:21]} 32. Rxc8+ {[%clk 0:00:40]}  Ke7 {[%clk 0:00:22]} 33. h5 {[%clk 0:00:34]}  d5 {[%clk 0:00:19]} 34. Bxd5 {[%clk 0:00:34]}  Kd7 {[%clk 0:00:19]} 35. Ra8 {[%clk 0:00:32]}  Kc7 {[%clk 0:00:17]} 36. Kc2 {[%clk 0:00:32]}  Kd6 {[%clk 0:00:18]} 37. Kd3 {[%clk 0:00:32]}  Kc5 {[%clk 0:00:18]} 38. Rc8+ {[%clk 0:00:31]}  Kb6 {[%clk 0:00:18]} 39. Kc4 {[%clk 0:00:31]}  Ka6 {[%clk 0:00:19]} 40. Rb8 {[%clk 0:00:26]}  Ka7 {[%clk 0:00:18]} 41. Re8 {[%clk 0:00:25]}  Ka6 {[%clk 0:00:19]} 42. Be6 {[%clk 0:00:23]}  Kb6 {[%clk 0:00:19]} 43. Kd5 {[%clk 0:00:22]}  Kc7 {[%clk 0:00:20]} 44. Rc8+ {[%clk 0:00:21]}  Kb7 {[%clk 0:00:20]} 45. Re8 {[%clk 0:00:21]}  Kc7 {[%clk 0:00:21]} 46. Kc4 {[%clk 0:00:21]}  Kb6 {[%clk 0:00:21]} 47. Bd5 {[%clk 0:00:21]}  Ka6 {[%clk 0:00:20]} 48. Rb8 {[%clk 0:00:21]}  Ka7 {[%clk 0:00:20]} 49. Rb7+ {[%clk 0:00:21]}  Ka6 {[%clk 0:00:20]} 50. Rf7 {[%clk 0:00:21]}  Kb6 {[%clk 0:00:21]} 51. Kd3 {[%clk 0:00:20]}  Kc5 {[%clk 0:00:20]} 52. Rc7+ {[%clk 0:00:19]}  Kb6 {[%clk 0:00:21]} 53. Rc8 {[%clk 0:00:20]}  Kb5 {[%clk 0:00:20]} 54. Re8 {[%clk 0:00:21]}  Kb6 {[%clk 0:00:21]} 55. Be6 {[%clk 0:00:21]}  Kc5 {[%clk 0:00:21]} 56. Rd8 {[%clk 0:00:21]}  Kb6 {[%clk 0:00:21]} 57. Kc4 {[%clk 0:00:19]}  Kc6 {[%clk 0:00:21]} 58. Bd5+ {[%clk 0:00:18]}  Kc7 {[%clk 0:00:22]} 59. Re8 {[%clk 0:00:17]}  Kb6 {[%clk 0:00:22]} 60. Bf7 {[%clk 0:00:17]}  Kc6 {[%clk 0:00:23]} 61. Be6 {[%clk 0:00:17]}  Kb6 {[%clk 0:00:23]} 1/2-1/2


[Site "https://www.chess.com"]

[Event "Titled Tuesday Blitz August 22 Late 2023"]
[White "Hilary46"]
[Black "Senft, Sean"]
[BlackFideId "2044960"]
[WhiteElo "2620"]
[BlackElo "2329"]
[Result "0-1"]
[Round "1"]
[TimeControl "180+1"]
[Date "2023.08.22"]
[WhiteClock "0:00:01"]
[BlackClock "0:00:11"]
[Board "144"]

1. e4 {[%clk 0:03:00]}  c5 {[%clk 0:02:59]} 2. Nf3 {[%clk 0:03:00]}  d6 {[%clk 0:02:59]} 3. d4 {[%clk 0:03:01]}  cxd4 {[%clk 0:03:00]} 4. Nxd4 {[%clk 0:03:02]}  Nf6 {[%clk 0:03:01]} 5. Nc3 {[%clk 0:03:02]}  a6 {[%clk 0:03:01]} 6. Bg5 {[%clk 0:03:03]}  e6 {[%clk 0:03:02]} 7. f4 {[%clk 0:03:03]}  Qb6 {[%clk 0:03:02]} 8. Qd2 {[%clk 0:03:01]}  Nc6 {[%clk 0:03:02]} 9. Nb3 {[%clk 0:03:00]}  Ng4 {[%clk 0:02:58]} 10. h3 {[%clk 0:02:49]}  Qe3+ {[%clk 0:02:57]} 11. Qxe3 {[%clk 0:02:49]}  Nxe3 {[%clk 0:02:58]} 12. Kd2 {[%clk 0:02:42]}  Nxf1+ {[%clk 0:02:57]} 13. Rhxf1 {[%clk 0:02:43]}  b5 {[%clk 0:02:41]} 14. Rad1 {[%clk 0:02:42]}  Bb7 {[%clk 0:02:40]} 15. Kc1 {[%clk 0:02:42]}  Rc8 {[%clk 0:02:32]} 16. a3 {[%clk 0:02:40]}  Be7 {[%clk 0:02:20]} 17. Bxe7 {[%clk 0:02:40]}  Kxe7 {[%clk 0:02:20]} 18. Nd4 {[%clk 0:02:33]}  Rc7 {[%clk 0:01:56]} 19. Nxc6+ {[%clk 0:02:30]}  Bxc6 {[%clk 0:01:56]} 20. g3 {[%clk 0:02:29]}  Rhc8 {[%clk 0:01:53]} 21. h4 {[%clk 0:02:27]}  a5 {[%clk 0:01:53]} 22. Rd4 {[%clk 0:01:48]}  e5 {[%clk 0:01:52]} 23. fxe5 {[%clk 0:01:37]}  dxe5 {[%clk 0:01:51]} 24. Rd2 {[%clk 0:01:38]}  b4 {[%clk 0:01:48]} 25. axb4 {[%clk 0:01:38]}  axb4 {[%clk 0:01:49]} 26. Nd5+ {[%clk 0:01:38]}  Bxd5 {[%clk 0:01:49]} 27. exd5 {[%clk 0:01:39]}  Rc5 {[%clk 0:01:37]} 28. g4 {[%clk 0:01:16]}  Rc4 {[%clk 0:01:20]} 29. Rg1 {[%clk 0:00:42]}  Rd8 {[%clk 0:01:20]} 30. h5 {[%clk 0:00:42]}  h6 {[%clk 0:01:08]} 31. g5 {[%clk 0:00:42]}  Rh4 {[%clk 0:01:01]} 32. gxh6 {[%clk 0:00:40]}  gxh6 {[%clk 0:01:01]} 33. b3 {[%clk 0:00:37]}  Rxh5 {[%clk 0:01:00]} 34. Rg4 {[%clk 0:00:37]}  Rb8 {[%clk 0:00:51]} 35. d6+ {[%clk 0:00:37]}  Kd7 {[%clk 0:00:50]} 36. Rc4 {[%clk 0:00:36]}  Rb7 {[%clk 0:00:49]} 37. Rc5 {[%clk 0:00:35]}  Rg5 {[%clk 0:00:41]} 38. Kb2 {[%clk 0:00:23]}  h5 {[%clk 0:00:35]} 39. Rc4 {[%clk 0:00:23]}  f5 {[%clk 0:00:32]} 40. Rd5 {[%clk 0:00:21]}  Ke6 {[%clk 0:00:25]} 41. Rcc5 {[%clk 0:00:20]}  f4 {[%clk 0:00:22]} 42. Rc7 {[%clk 0:00:15]}  Kxd5 {[%clk 0:00:14]} 43. Rxb7 {[%clk 0:00:14]}  Kxd6 {[%clk 0:00:13]} 44. c4 {[%clk 0:00:05]}  f3 {[%clk 0:00:12]} 45. Rf7 {[%clk 0:00:04]}  e4 {[%clk 0:00:11]} 46. Kc2 {[%clk 0:00:04]}  Rg2+ {[%clk 0:00:10]} 47. Kd1 {[%clk 0:00:04]}  h4 {[%clk 0:00:11]} 48. Rf4 {[%clk 0:00:03]}  h3 {[%clk 0:00:10]} 49. Rxe4 {[%clk 0:00:02]}  h2 {[%clk 0:00:10]} 50. Rh4 {[%clk 0:00:01]}  Rg1+ {[%clk 0:00:11]} 0-1


[Site "https://www.chess.com"]

[Event "Titled Tuesday Blitz August 22 Late 2023"]
[White "Davidson, Kevin"]
[Black "Sydoryka, Vladyslav"]
[WhiteFideId "2056810"]
[BlackFideId "14145928"]
[WhiteElo "2327"]
[BlackElo "2620"]
[Result "1-0"]
[Round "1"]
[TimeControl "180+1"]
[Date "2023.08.22"]
[WhiteClock "0:00:05"]
[BlackClock "0:00:41"]
[Board "145"]

1. e4 {[%clk 0:03:00]}  c6 {[%clk 0:02:59]} 2. d4 {[%clk 0:03:00]}  d5 {[%clk 0:03:00]} 3. e5 {[%clk 0:03:00]}  c5 {[%clk 0:02:58]} 4. dxc5 {[%clk 0:03:00]}  e6 {[%clk 0:02:56]} 5. a3 {[%clk 0:02:59]}  Bxc5 {[%clk 0:02:53]} 6. Qg4 {[%clk 0:02:58]}  g6 {[%clk 0:02:53]} 7. Nf3 {[%clk 0:02:58]}  h5 {[%clk 0:02:51]} 8. Qf4 {[%clk 0:02:54]}  Nh6 {[%clk 0:02:45]} 9. Bd3 {[%clk 0:02:53]}  Nc6 {[%clk 0:02:38]} 10. O-O {[%clk 0:02:43]}  Nf5 {[%clk 0:02:34]} 11. c4 {[%clk 0:02:27]}  dxc4 {[%clk 0:02:22]} 12. Bxc4 {[%clk 0:02:22]}  Ncd4 {[%clk 0:01:44]} 13. Nc3 {[%clk 0:02:10]}  Nxf3+ {[%clk 0:01:41]} 14. Qxf3 {[%clk 0:02:10]}  O-O {[%clk 0:01:26]} 15. Ne4 {[%clk 0:01:35]}  Qd4 {[%clk 0:01:12]} 16. Bd3 {[%clk 0:00:41]}  Qxe5 {[%clk 0:01:08]} 17. Bf4 {[%clk 0:00:34]}  Qg7 {[%clk 0:01:00]} 18. Nxc5 {[%clk 0:00:33]}  e5 {[%clk 0:00:53]} 19. Bg5 {[%clk 0:00:20]}  f6 {[%clk 0:00:43]} 20. Bd2 {[%clk 0:00:19]}  Nd4 {[%clk 0:00:43]} 21. Qd5+ {[%clk 0:00:17]}  Kh7 {[%clk 0:00:43]} 22. Bc3 {[%clk 0:00:12]}  Bg4 {[%clk 0:00:37]} 23. Bxd4 {[%clk 0:00:11]}  Rad8 {[%clk 0:00:38]} 24. Qxb7 {[%clk 0:00:09]}  Rxd4 {[%clk 0:00:37]} 25. Qxg7+ {[%clk 0:00:07]}  Kxg7 {[%clk 0:00:38]} 26. Ba6 {[%clk 0:00:03]}  Rd5 {[%clk 0:00:37]} 27. b4 {[%clk 0:00:03]}  Rd2 {[%clk 0:00:36]} 28. f3 {[%clk 0:00:03]}  Bf5 {[%clk 0:00:36]} 29. Rad1 {[%clk 0:00:02]}  Rb2 {[%clk 0:00:36]} 30. Rf2 {[%clk 0:00:01]}  Rxf2 {[%clk 0:00:36]} 31. Kxf2 {[%clk 0:00:02]}  h4 {[%clk 0:00:37]} 32. g4 {[%clk 0:00:02]}  hxg3+ {[%clk 0:00:37]} 33. hxg3 {[%clk 0:00:03]}  Rh8 {[%clk 0:00:37]} 34. g4 {[%clk 0:00:03]}  Bc2 {[%clk 0:00:37]} 35. Rd7+ {[%clk 0:00:02]}  Kh6 {[%clk 0:00:37]} 36. Rxa7 {[%clk 0:00:02]}  Kg5 {[%clk 0:00:38]} 37. Ke3 {[%clk 0:00:01]}  Rh1 {[%clk 0:00:38]} 38. Ne6+ {[%clk 0:00:02]}  Kh4 {[%clk 0:00:38]} 39. Rh7+ {[%clk 0:00:01]}  Kg3 {[%clk 0:00:39]} 40. Rxh1 {[%clk 0:00:01]}  f5 {[%clk 0:00:40]} 41. Rh6 {[%clk 0:00:01]}  f4+ {[%clk 0:00:40]} 42. Kd2 {[%clk 0:00:02]}  Bb1 {[%clk 0:00:40]} 43. Bb7 {[%clk 0:00:02]}  Kf2 {[%clk 0:00:39]} 44. Be4 {[%clk 0:00:02]}  Bxe4 {[%clk 0:00:38]} 45. fxe4 {[%clk 0:00:03]}  Kg2 {[%clk 0:00:38]} 46. Rxg6 {[%clk 0:00:03]}  f3 {[%clk 0:00:39]} 47. Rf6 {[%clk 0:00:04]}  f2 {[%clk 0:00:40]} 48. g5 {[%clk 0:00:04]}  f1=Q {[%clk 0:00:41]} 49. Rxf1 {[%clk 0:00:04]}  Kxf1 {[%clk 0:00:41]} 50. g6 {[%clk 0:00:05]} 1-0


[Site "https://www.chess.com"]

[Event "Titled Tuesday Blitz August 22 Late 2023"]
[White "Hamitevici, Vladimir"]
[Black "Acikel, Mert"]
[WhiteFideId "13902393"]
[BlackFideId "12956465"]
[WhiteElo "2613"]
[BlackElo "2317"]
[Result "1/2-1/2"]
[Round "1"]
[TimeControl "180+1"]
[Date "2023.08.22"]
[WhiteClock "0:00:17"]
[BlackClock "0:00:14"]
[Board "148"]

1. e4 {[%clk 0:02:53]}  c6 {[%clk 0:02:59]} 2. d4 {[%clk 0:02:52]}  d5 {[%clk 0:03:00]} 3. f3 {[%clk 0:02:52]}  dxe4 {[%clk 0:03:00]} 4. fxe4 {[%clk 0:02:53]}  e5 {[%clk 0:03:00]} 5. Nf3 {[%clk 0:02:50]}  Bg4 {[%clk 0:02:59]} 6. c3 {[%clk 0:02:49]}  Nd7 {[%clk 0:02:54]} 7. Bc4 {[%clk 0:02:47]}  Ngf6 {[%clk 0:02:54]} 8. O-O {[%clk 0:02:36]}  Bd6 {[%clk 0:02:54]} 9. Bg5 {[%clk 0:02:27]}  Qc7 {[%clk 0:02:53]} 10. h3 {[%clk 0:02:22]}  Bh5 {[%clk 0:02:51]} 11. Nbd2 {[%clk 0:02:22]}  O-O {[%clk 0:02:49]} 12. a4 {[%clk 0:02:20]}  h6 {[%clk 0:02:35]} 13. Bxf6 {[%clk 0:02:02]}  Nxf6 {[%clk 0:02:34]} 14. Qe1 {[%clk 0:02:03]}  Bg6 {[%clk 0:02:33]} 15. Nh4 {[%clk 0:02:02]}  Bh7 {[%clk 0:02:29]} 16. Nf5 {[%clk 0:02:02]}  Bxf5 {[%clk 0:02:22]} 17. Rxf5 {[%clk 0:02:03]}  Rae8 {[%clk 0:02:13]} 18. Rxf6 {[%clk 0:01:56]}  gxf6 {[%clk 0:02:13]} 19. Qh4 {[%clk 0:01:57]}  exd4 {[%clk 0:01:32]} 20. Qxh6 {[%clk 0:01:56]}  Bh2+ {[%clk 0:01:14]} 21. Kh1 {[%clk 0:01:56]}  Qf4 {[%clk 0:01:13]} 22. Qg6+ {[%clk 0:01:51]}  Kh8 {[%clk 0:01:13]} 23. Qh5+ {[%clk 0:01:52]}  Kg7 {[%clk 0:01:12]} 24. Rf1 {[%clk 0:01:42]}  Qxd2 {[%clk 0:01:10]} 25. Kxh2 {[%clk 0:01:42]}  Qg5 {[%clk 0:01:10]} 26. Qe2 {[%clk 0:01:12]}  dxc3 {[%clk 0:01:07]} 27. bxc3 {[%clk 0:01:13]}  Qe5+ {[%clk 0:00:59]} 28. Kh1 {[%clk 0:01:13]}  Qxe4 {[%clk 0:00:55]} 29. Qa2 {[%clk 0:01:01]}  Re5 {[%clk 0:00:52]} 30. Rf3 {[%clk 0:00:56]}  Rg5 {[%clk 0:00:37]} 31. Bf1 {[%clk 0:00:35]}  Re8 {[%clk 0:00:33]} 32. Qf2 {[%clk 0:00:29]}  Re6 {[%clk 0:00:32]} 33. Qxa7 {[%clk 0:00:25]}  Rf5 {[%clk 0:00:26]} 34. Rg3+ {[%clk 0:00:20]}  Rg5 {[%clk 0:00:24]} 35. Rf3 {[%clk 0:00:20]}  Rf5 {[%clk 0:00:23]} 36. Rg3+ {[%clk 0:00:17]}  Rg5 {[%clk 0:00:14]} 37. Rf3 {[%clk 0:00:17]} 1/2-1/2


[Site "https://www.chess.com"]

[Event "Titled Tuesday Blitz August 22 Late 2023"]
[White "Papayan, Oleg"]
[Black "Sala, Giulia"]
[WhiteFideId "4193911"]
[BlackFideId "2840451"]
[WhiteElo "2609"]
[BlackElo "2311"]
[Result "1-0"]
[Round "1"]
[TimeControl "180+1"]
[Date "2023.08.22"]
[WhiteClock "0:01:45"]
[BlackClock "0:00:19"]
[Board "152"]

1. e4 {[%clk 0:02:55]}  c5 {[%clk 0:02:59]} 2. Nf3 {[%clk 0:02:54]}  Nc6 {[%clk 0:02:59]} 3. Bb5 {[%clk 0:02:55]}  g6 {[%clk 0:02:56]} 4. O-O {[%clk 0:02:55]}  Bg7 {[%clk 0:02:52]} 5. c3 {[%clk 0:02:55]}  a6 {[%clk 0:02:32]} 6. Bc4 {[%clk 0:02:52]}  e6 {[%clk 0:02:30]} 7. d4 {[%clk 0:02:51]}  cxd4 {[%clk 0:02:30]} 8. cxd4 {[%clk 0:02:52]}  d5 {[%clk 0:02:30]} 9. exd5 {[%clk 0:02:53]}  exd5 {[%clk 0:02:30]} 10. Re1+ {[%clk 0:02:53]}  Nge7 {[%clk 0:02:26]} 11. Bb3 {[%clk 0:02:53]}  O-O {[%clk 0:02:26]} 12. Bg5 {[%clk 0:02:53]}  Be6 {[%clk 0:02:26]} 13. Nc3 {[%clk 0:02:53]}  Qd6 {[%clk 0:02:10]} 14. Qd2 {[%clk 0:02:52]}  Nf5 {[%clk 0:02:10]} 15. Bf4 {[%clk 0:02:47]}  Qd8 {[%clk 0:01:58]} 16. Be5 {[%clk 0:02:46]}  Nxe5 {[%clk 0:01:57]} 17. Nxe5 {[%clk 0:02:45]}  Rc8 {[%clk 0:01:55]} 18. Rac1 {[%clk 0:02:45]}  Qa5 {[%clk 0:01:51]} 19. h3 {[%clk 0:02:40]}  Rfd8 {[%clk 0:01:51]} 20. Qf4 {[%clk 0:02:39]}  Qb4 {[%clk 0:01:43]} 21. Rcd1 {[%clk 0:02:37]}  Qd6 {[%clk 0:01:15]} 22. Na4 {[%clk 0:02:26]}  b6 {[%clk 0:01:12]} 23. Nc3 {[%clk 0:02:25]}  b5 {[%clk 0:01:11]} 24. Qd2 {[%clk 0:02:17]}  Qb6 {[%clk 0:01:06]} 25. Nf3 {[%clk 0:02:17]}  a5 {[%clk 0:01:06]} 26. Ne2 {[%clk 0:02:15]}  a4 {[%clk 0:01:04]} 27. Bc2 {[%clk 0:02:16]}  Nd6 {[%clk 0:01:05]} 28. b3 {[%clk 0:02:14]}  axb3 {[%clk 0:01:04]} 29. axb3 {[%clk 0:02:15]}  b4 {[%clk 0:01:03]} 30. Nf4 {[%clk 0:02:14]}  Bf5 {[%clk 0:01:02]} 31. Nxd5 {[%clk 0:02:08]}  Rxc2 {[%clk 0:00:55]} 32. Nxb6 {[%clk 0:02:07]}  Rxd2 {[%clk 0:00:55]} 33. Rxd2 {[%clk 0:02:08]}  Ne4 {[%clk 0:00:54]} 34. Rde2 {[%clk 0:02:06]}  Nd6 {[%clk 0:00:50]} 35. Nd5 {[%clk 0:02:03]}  Be6 {[%clk 0:00:49]} 36. Nxb4 {[%clk 0:02:01]}  Bxb3 {[%clk 0:00:50]} 37. Nc6 {[%clk 0:02:00]}  Ra8 {[%clk 0:00:47]} 38. d5 {[%clk 0:02:01]}  Bf6 {[%clk 0:00:41]} 39. Ne7+ {[%clk 0:01:56]}  Bxe7 {[%clk 0:00:41]} 40. Rxe7 {[%clk 0:01:57]}  Bxd5 {[%clk 0:00:41]} 41. Rd7 {[%clk 0:01:55]}  Bxf3 {[%clk 0:00:41]} 42. Rxd6 {[%clk 0:01:55]}  Bb7 {[%clk 0:00:26]} 43. Re7 {[%clk 0:01:56]}  Ra1+ {[%clk 0:00:19]} 44. Kh2 {[%clk 0:01:56]}  Rb1 {[%clk 0:00:19]} 45. Rd8+ {[%clk 0:01:55]}  Kg7 {[%clk 0:00:19]} 46. Rdd7 {[%clk 0:01:54]}  Bc6 {[%clk 0:00:18]} 47. Rxf7+ {[%clk 0:01:54]}  Kg8 {[%clk 0:00:18]} 48. Rg7+ {[%clk 0:01:53]}  Kf8 {[%clk 0:00:18]} 49. Rdf7+ {[%clk 0:01:53]}  Ke8 {[%clk 0:00:18]} 50. Re7+ {[%clk 0:01:53]}  Kf8 {[%clk 0:00:18]} 51. Rxh7 {[%clk 0:01:53]}  Rb2 {[%clk 0:00:18]} 52. Ref7+ {[%clk 0:01:53]}  Kg8 {[%clk 0:00:18]} 53. Rhg7+ {[%clk 0:01:51]}  Kh8 {[%clk 0:00:19]} 54. Rxg6 {[%clk 0:01:50]}  Be8 {[%clk 0:00:19]} 55. Rf8+ {[%clk 0:01:49]}  Kh7 {[%clk 0:00:20]} 56. Rg3 {[%clk 0:01:48]}  Bg6 {[%clk 0:00:18]} 57. Rf4 {[%clk 0:01:47]}  Rb3 {[%clk 0:00:18]} 58. Re3 {[%clk 0:01:44]}  Rb7 {[%clk 0:00:17]} 59. Rg3 {[%clk 0:01:45]}  Re7 {[%clk 0:00:16]} 60. Rh4+ {[%clk 0:01:44]}  Kg7 {[%clk 0:00:17]} 61. Rhg4 {[%clk 0:01:45]}  Re6 {[%clk 0:00:18]} 62. h4 {[%clk 0:01:45]}  Kh6 {[%clk 0:00:18]} 63. Rxg6+ {[%clk 0:01:44]}  Rxg6 {[%clk 0:00:18]} 64. Rxg6+ {[%clk 0:01:45]}  Kxg6 {[%clk 0:00:19]} 65. g4 {[%clk 0:01:45]}  Kf6 {[%clk 0:00:19]} 66. f4 {[%clk 0:01:45]} 1-0


[Site "https://www.chess.com"]